[Event "Titled Tuesday Blitz November 29 Early 2022"]
[White "Ilkhomi, Jaloliddin"]
[Black "Rosen, Eric"]
[WhiteFideId "14700948"]
[BlackFideId "2032562"]
[WhiteElo "2045"]
[BlackElo "2362"]
[Result "0-1"]
[Round "07"]
[TimeControl "180+1"]
[Date "2022.11.30"]
[WhiteClock "0:00:57"]
[BlackClock "0:01:13"]

1. d4 {[%clk 0:03:00]}  d5 {[%clk 0:02:58]} 2. Bf4 {[%clk 0:03:00]}  Nf6 {[%clk 0:02:58]} 3. e3 {[%clk 0:03:00]}  c5 {[%clk 0:02:59]} 4. c3 {[%clk 0:02:59]}  Nc6 {[%clk 0:02:55]} 5. Nd2 {[%clk 0:02:58]}  Bf5 {[%clk 0:02:49]} 6. Ngf3 {[%clk 0:02:57]}  cxd4 {[%clk 0:02:49]} 7. exd4 {[%clk 0:02:56]}  e6 {[%clk 0:02:50]} 8. Qb3 {[%clk 0:02:55]}  Bd6 {[%clk 0:02:50]} 9. Ne5 {[%clk 0:02:37]}  O-O {[%clk 0:02:42]} 10. Be2 {[%clk 0:02:31]}  Qc7 {[%clk 0:02:42]} 11. Ndf3 {[%clk 0:02:31]}  Nh5 {[%clk 0:02:32]} 12. Bg3 {[%clk 0:02:17]}  Nxg3 {[%clk 0:02:29]} 13. hxg3 {[%clk 0:02:18]}  Nxe5 {[%clk 0:02:29]} 14. dxe5 {[%clk 0:02:18]}  Bxe5 {[%clk 0:02:30]} 15. Qd1 {[%clk 0:01:52]}  h6 {[%clk 0:02:13]} 16. Bd3 {[%clk 0:01:49]}  Bg4 {[%clk 0:01:55]} 17. Qe2 {[%clk 0:01:42]}  Bxc3+ {[%clk 0:01:52]} 18. Kf1 {[%clk 0:01:28]}  Bf6 {[%clk 0:01:45]} 19. Kg1 {[%clk 0:01:28]}  Rac8 {[%clk 0:01:44]} 20. Kh2 {[%clk 0:01:27]}  e5 {[%clk 0:01:40]} 21. Rac1 {[%clk 0:01:27]}  Qb6 {[%clk 0:01:20]} 22. Bb1 {[%clk 0:01:05]}  e4 {[%clk 0:01:15]} 23. Rxc8 {[%clk 0:01:01]}  Rxc8 {[%clk 0:01:16]} 24. Rc1 {[%clk 0:00:57]}  Rxc1 {[%clk 0:01:13]} 0-1


[Site "https://www.chess.com"]

[Event "Titled Tuesday Blitz November 29 Early 2022"]
[White "Ingebretsen, Jens E"]
[Black "Salinas Herrera, Pablo"]
[WhiteFideId "1522965"]
[BlackFideId "3407128"]
[WhiteElo "2213"]
[BlackElo "2557"]
[Result "1-0"]
[Round "07"]
[TimeControl "180+1"]
[Date "2022.11.30"]
[WhiteClock "0:00:26"]
[BlackClock "0:00:03"]

1. c4 {[%clk 0:03:00]}  e5 {[%clk 0:02:57]} 2. Nc3 {[%clk 0:02:59]}  Nc6 {[%clk 0:02:57]} 3. g3 {[%clk 0:03:00]}  Bc5 {[%clk 0:02:57]} 4. Bg2 {[%clk 0:03:00]}  d6 {[%clk 0:02:58]} 5. e3 {[%clk 0:03:01]}  a6 {[%clk 0:02:59]} 6. Nge2 {[%clk 0:03:01]}  Ba7 {[%clk 0:02:59]} 7. O-O {[%clk 0:03:02]}  h5 {[%clk 0:03:00]} 8. d4 {[%clk 0:03:02]}  Nge7 {[%clk 0:02:56]} 9. d5 {[%clk 0:03:02]}  Nb8 {[%clk 0:02:56]} 10. h4 {[%clk 0:03:00]}  Bg4 {[%clk 0:02:54]} 11. b4 {[%clk 0:02:44]}  Nd7 {[%clk 0:02:53]} 12. Bb2 {[%clk 0:02:38]}  Nf6 {[%clk 0:02:48]} 13. e4 {[%clk 0:02:29]}  Qd7 {[%clk 0:02:46]} 14. Qd3 {[%clk 0:02:26]}  Bh3 {[%clk 0:02:44]} 15. Rac1 {[%clk 0:02:19]}  O-O {[%clk 0:02:42]} 16. c5 {[%clk 0:01:54]}  Ng6 {[%clk 0:02:35]} 17. Nd1 {[%clk 0:01:46]}  a5 {[%clk 0:02:26]} 18. a3 {[%clk 0:01:32]}  axb4 {[%clk 0:02:24]} 19. axb4 {[%clk 0:01:33]}  Bxg2 {[%clk 0:01:34]} 20. Kxg2 {[%clk 0:01:34]}  dxc5 {[%clk 0:01:34]} 21. bxc5 {[%clk 0:01:34]}  c6 {[%clk 0:01:35]} 22. Ne3 {[%clk 0:01:23]}  Rfd8 {[%clk 0:01:31]} 23. Rfd1 {[%clk 0:01:22]}  Rac8 {[%clk 0:01:11]} 24. d6 {[%clk 0:01:18]}  b6 {[%clk 0:01:11]} 25. cxb6 {[%clk 0:01:19]}  Bxb6 {[%clk 0:01:11]} 26. Nf5 {[%clk 0:01:19]}  Qe6 {[%clk 0:01:05]} 27. Qc4 {[%clk 0:01:14]}  Qd7 {[%clk 0:00:55]} 28. Rb1 {[%clk 0:01:01]}  Rb8 {[%clk 0:00:48]} 29. Bc3 {[%clk 0:00:56]}  Kh7 {[%clk 0:00:47]} 30. Rxb6 {[%clk 0:00:42]}  Rxb6 {[%clk 0:00:47]} 31. Ba5 {[%clk 0:00:43]}  Rdb8 {[%clk 0:00:39]} 32. Bxb6 {[%clk 0:00:43]}  Rxb6 {[%clk 0:00:40]} 33. Nc3 {[%clk 0:00:39]}  Ng4 {[%clk 0:00:27]} 34. Rd2 {[%clk 0:00:33]}  Rb8 {[%clk 0:00:16]} 35. Na4 {[%clk 0:00:33]}  Rd8 {[%clk 0:00:16]} 36. Nc5 {[%clk 0:00:33]}  Qa7 {[%clk 0:00:16]} 37. d7 {[%clk 0:00:28]}  Nf6 {[%clk 0:00:16]} 38. Qxf7 {[%clk 0:00:28]}  Rg8 {[%clk 0:00:04]} 39. Nxg7 {[%clk 0:00:26]}  Rxg7 {[%clk 0:00:03]} 40. Qxf6 {[%clk 0:00:26]} 1-0


[Site "https://www.chess.com"]

[Event "Titled Tuesday Blitz November 29 Early 2022"]
[White "Jumabayev, Rinat"]
[Black "Cardoso Cardoso, Jose Gabriel"]
[WhiteFideId "13702661"]
[BlackFideId "4430492"]
[WhiteElo "2561"]
[BlackElo "2484"]
[Result "1-0"]
[Round "07"]
[TimeControl "180+1"]
[Date "2022.11.30"]
[WhiteClock "0:00:08"]
[BlackClock "0:00:01"]

1. e3 {[%clk 0:03:00]}  d5 {[%clk 0:02:56]} 2. Nf3 {[%clk 0:03:00]}  Nf6 {[%clk 0:02:54]} 3. b3 {[%clk 0:02:59]}  c5 {[%clk 0:02:53]} 4. Bb2 {[%clk 0:02:59]}  Nc6 {[%clk 0:02:53]} 5. Bb5 {[%clk 0:03:00]}  Qb6 {[%clk 0:02:53]} 6. c4 {[%clk 0:02:54]}  a6 {[%clk 0:02:46]} 7. Ba4 {[%clk 0:02:39]}  dxc4 {[%clk 0:02:40]} 8. Ne5 {[%clk 0:02:39]}  Bd7 {[%clk 0:02:34]} 9. Bxc6 {[%clk 0:01:12]}  Bxc6 {[%clk 0:02:32]} 10. Nxc4 {[%clk 0:01:13]}  Qd8 {[%clk 0:02:21]} 11. Ne5 {[%clk 0:01:10]}  Bxg2 {[%clk 0:02:15]} 12. Rg1 {[%clk 0:01:10]}  Qd5 {[%clk 0:01:57]} 13. f4 {[%clk 0:00:54]}  Be4 {[%clk 0:01:38]} 14. Nc3 {[%clk 0:00:55]}  Qd6 {[%clk 0:01:30]} 15. Nxe4 {[%clk 0:00:50]}  Nxe4 {[%clk 0:01:29]} 16. Qc2 {[%clk 0:00:47]}  Nf6 {[%clk 0:01:23]} 17. O-O-O {[%clk 0:00:40]}  e6 {[%clk 0:01:16]} 18. Kb1 {[%clk 0:00:26]}  Rc8 {[%clk 0:01:15]} 19. d4 {[%clk 0:00:26]}  Qc7 {[%clk 0:00:40]} 20. Rc1 {[%clk 0:00:22]}  b6 {[%clk 0:00:34]} 21. f5 {[%clk 0:00:22]}  exf5 {[%clk 0:00:27]} 22. Qxf5 {[%clk 0:00:22]}  Qb7 {[%clk 0:00:26]} 23. Ka1 {[%clk 0:00:19]}  Rd8 {[%clk 0:00:19]} 24. dxc5 {[%clk 0:00:14]}  bxc5 {[%clk 0:00:18]} 25. Rcd1 {[%clk 0:00:13]}  Rxd1+ {[%clk 0:00:15]} 26. Rxd1 {[%clk 0:00:14]}  Be7 {[%clk 0:00:15]} 27. Ng4 {[%clk 0:00:12]}  Qc6 {[%clk 0:00:06]} 28. Nxf6+ {[%clk 0:00:10]}  Bxf6 {[%clk 0:00:06]} 29. Bxf6 {[%clk 0:00:06]}  Qxf6+ {[%clk 0:00:06]} 30. Qxf6 {[%clk 0:00:07]}  gxf6 {[%clk 0:00:06]} 31. Rd6 {[%clk 0:00:08]}  Rg8 {[%clk 0:00:06]} 32. Rxf6 {[%clk 0:00:06]}  Rg1+ {[%clk 0:00:05]} 33. Kb2 {[%clk 0:00:07]}  Rg2+ {[%clk 0:00:06]} 34. Ka3 {[%clk 0:00:08]}  Rxh2 {[%clk 0:00:06]} 35. Rxa6 {[%clk 0:00:08]}  h5 {[%clk 0:00:06]} 36. Rc6 {[%clk 0:00:09]}  Ke7 {[%clk 0:00:02]} 37. Rxc5 {[%clk 0:00:09]}  Ke6 {[%clk 0:00:02]} 38. b4 {[%clk 0:00:08]}  Rh3 {[%clk 0:00:02]} 39. Ka4 {[%clk 0:00:08]}  f5 {[%clk 0:00:01]} 40. b5 {[%clk 0:00:08]}  Rxe3 {[%clk 0:00:01]} 41. b6 {[%clk 0:00:08]}  Re2 {[%clk 0:00:01]} 42. b7 {[%clk 0:00:07]}  Rb2 {[%clk 0:00:01]} 43. Rb5 {[%clk 0:00:07]}  Rxa2+ {[%clk 0:00:01]} 44. Kb3 {[%clk 0:00:08]} 1-0


[Site "https://www.chess.com"]

[Event "Titled Tuesday Blitz November 29 Early 2022"]
[White "Kovacevic, Radmila"]
[Black "Malka, Samuel"]
[WhiteFideId "933171"]
[BlackFideId "20643675"]
[WhiteElo "2208"]
[BlackElo "2458"]
[Result "0-1"]
[Round "07"]
[TimeControl "180+1"]
[Date "2022.11.30"]
[WhiteClock "0:00:02"]
[BlackClock "0:00:44"]

1. e4 {[%clk 0:02:57]}  c5 {[%clk 0:02:58]} 2. Be2 {[%clk 0:02:57]}  Nc6 {[%clk 0:02:55]} 3. f4 {[%clk 0:02:57]}  e6 {[%clk 0:02:53]} 4. Nf3 {[%clk 0:02:57]}  d5 {[%clk 0:02:51]} 5. d3 {[%clk 0:02:56]}  Bd6 {[%clk 0:02:44]} 6. O-O {[%clk 0:02:49]}  Nge7 {[%clk 0:02:44]} 7. c3 {[%clk 0:02:45]}  O-O {[%clk 0:02:44]} 8. Qe1 {[%clk 0:02:43]}  f6 {[%clk 0:02:44]} 9. Bd1 {[%clk 0:02:31]}  Rb8 {[%clk 0:02:31]} 10. e5 {[%clk 0:02:17]}  Bc7 {[%clk 0:02:16]} 11. d4 {[%clk 0:02:13]}  cxd4 {[%clk 0:02:14]} 12. cxd4 {[%clk 0:02:14]}  Nf5 {[%clk 0:02:10]} 13. g4 {[%clk 0:02:08]}  Nfxd4 {[%clk 0:02:09]} 14. Nxd4 {[%clk 0:02:07]}  Nxd4 {[%clk 0:02:10]} 15. exf6 {[%clk 0:01:57]}  Qxf6 {[%clk 0:02:01]} 16. Nc3 {[%clk 0:01:51]}  b5 {[%clk 0:01:50]} 17. Be3 {[%clk 0:01:43]}  b4 {[%clk 0:01:48]} 18. Ne2 {[%clk 0:01:34]}  Nxe2+ {[%clk 0:01:38]} 19. Qxe2 {[%clk 0:01:35]}  Bd7 {[%clk 0:01:34]} 20. g5 {[%clk 0:01:10]}  Qf7 {[%clk 0:01:27]} 21. Bc2 {[%clk 0:00:51]}  Bb5 {[%clk 0:01:23]} 22. Bxh7+ {[%clk 0:00:28]}  Kxh7 {[%clk 0:01:17]} 23. Qc2+ {[%clk 0:00:28]}  Kg8 {[%clk 0:01:17]} 24. Rf3 {[%clk 0:00:17]}  Bb6 {[%clk 0:01:11]} 25. Bxb6 {[%clk 0:00:14]}  axb6 {[%clk 0:01:01]} 26. Re1 {[%clk 0:00:11]}  Qf5 {[%clk 0:00:59]} 27. Qg2 {[%clk 0:00:10]}  Bd3 {[%clk 0:00:54]} 28. Re5 {[%clk 0:00:05]}  Qg6 {[%clk 0:00:49]} 29. Rg3 {[%clk 0:00:02]}  Bf5 {[%clk 0:00:46]} 30. h4 {[%clk 0:00:02]}  Rbc8 {[%clk 0:00:44]} 0-1


[Site "https://www.chess.com"]

[Event "Titled Tuesday Blitz November 29 Early 2022"]
[White "Larina, Maria"]
[Black "Dehtiarov, Roman"]
[WhiteFideId "24113182"]
[BlackFideId "14186640"]
[WhiteElo "1848"]
[BlackElo "2200"]
[Result "1-0"]
[Round "07"]
[TimeControl "180+1"]
[Date "2022.11.30"]
[WhiteClock "0:00:28"]
[BlackClock "0:00:05"]

1. e4 {[%clk 0:03:00]}  e5 {[%clk 0:00:35]} 2. Nf3 {[%clk 0:02:58]}  Nc6 {[%clk 0:00:36]} 3. Nc3 {[%clk 0:02:58]}  Nf6 {[%clk 0:00:35]} 4. Bb5 {[%clk 0:02:58]}  a6 {[%clk 0:00:28]} 5. Bxc6 {[%clk 0:02:57]}  dxc6 {[%clk 0:00:29]} 6. Nxe5 {[%clk 0:02:57]}  Bc5 {[%clk 0:00:21]} 7. O-O {[%clk 0:02:46]}  O-O {[%clk 0:00:21]} 8. d3 {[%clk 0:02:15]}  Re8 {[%clk 0:00:19]} 9. Nf3 {[%clk 0:02:15]}  Bg4 {[%clk 0:00:19]} 10. Be3 {[%clk 0:02:10]}  Bd6 {[%clk 0:00:19]} 11. h3 {[%clk 0:02:09]}  Bh5 {[%clk 0:00:20]} 12. Bg5 {[%clk 0:02:02]}  h6 {[%clk 0:00:20]} 13. Bh4 {[%clk 0:01:58]}  Qe7 {[%clk 0:00:12]} 14. Qe2 {[%clk 0:01:52]}  Qe6 {[%clk 0:00:09]} 15. Qe3 {[%clk 0:01:47]}  g5 {[%clk 0:00:08]} 16. Nxg5 {[%clk 0:01:38]}  hxg5 {[%clk 0:00:07]} 17. Qxg5+ {[%clk 0:01:37]}  Bg6 {[%clk 0:00:07]} 18. Qxf6 {[%clk 0:01:36]}  Qd7 {[%clk 0:00:08]} 19. f4 {[%clk 0:01:24]}  Bc5+ {[%clk 0:00:07]} 20. Bf2 {[%clk 0:01:13]}  Be7 {[%clk 0:00:05]} 21. Qd4 {[%clk 0:01:08]}  Qc8 {[%clk 0:00:06]} 22. f5 {[%clk 0:01:07]}  Bh7 {[%clk 0:00:06]} 23. f6 {[%clk 0:01:07]}  Bf8 {[%clk 0:00:05]} 24. e5 {[%clk 0:01:06]}  Qe6 {[%clk 0:00:06]} 25. Rae1 {[%clk 0:01:01]}  Rad8 {[%clk 0:00:06]} 26. Qh4 {[%clk 0:00:59]}  Bg6 {[%clk 0:00:06]} 27. d4 {[%clk 0:00:50]}  b6 {[%clk 0:00:05]} 28. Ne4 {[%clk 0:00:48]}  c5 {[%clk 0:00:05]} 29. c3 {[%clk 0:00:36]}  cxd4 {[%clk 0:00:05]} 30. cxd4 {[%clk 0:00:36]}  c5 {[%clk 0:00:06]} 31. Ng5 {[%clk 0:00:36]}  Qxa2 {[%clk 0:00:06]} 32. dxc5 {[%clk 0:00:29]}  Bxc5 {[%clk 0:00:05]} 33. Bxc5 {[%clk 0:00:28]}  bxc5 {[%clk 0:00:05]} 34. Qh6 {[%clk 0:00:28]} 1-0


[Site "https://www.chess.com"]

[Event "Titled Tuesday Blitz November 29 Early 2022"]
[White "Levitan, Caleb Levi"]
[Black "Sovetbekova, Nurai"]
[WhiteFideId "14332620"]
[BlackFideId "13801910"]
[WhiteElo "1963"]
[BlackElo "1925"]
[Result "0-1"]
[Round "07"]
[TimeControl "180+1"]
[Date "2022.11.30"]
[WhiteClock "0:00:01"]
[BlackClock "0:00:09"]

1. e4 {[%clk 0:03:00]}  c5 {[%clk 0:02:59]} 2. Nf3 {[%clk 0:03:00]}  d6 {[%clk 0:02:59]} 3. d4 {[%clk 0:02:59]}  cxd4 {[%clk 0:03:00]} 4. Nxd4 {[%clk 0:02:57]}  Nf6 {[%clk 0:03:00]} 5. Nc3 {[%clk 0:02:58]}  a6 {[%clk 0:03:00]} 6. Bc4 {[%clk 0:02:57]}  e6 {[%clk 0:02:59]} 7. Bb3 {[%clk 0:02:58]}  b5 {[%clk 0:02:56]} 8. f3 {[%clk 0:02:42]}  Nbd7 {[%clk 0:02:54]} 9. Be3 {[%clk 0:02:41]}  Nc5 {[%clk 0:02:47]} 10. Qd2 {[%clk 0:02:40]}  Bb7 {[%clk 0:02:45]} 11. O-O-O {[%clk 0:02:39]}  Be7 {[%clk 0:02:39]} 12. g4 {[%clk 0:02:35]}  Qc7 {[%clk 0:02:32]} 13. h4 {[%clk 0:02:28]}  O-O-O {[%clk 0:02:24]} 14. h5 {[%clk 0:02:14]}  d5 {[%clk 0:02:11]} 15. e5 {[%clk 0:01:57]}  Nfd7 {[%clk 0:02:05]} 16. f4 {[%clk 0:01:57]}  Ne4 {[%clk 0:01:56]} 17. Nxe4 {[%clk 0:01:52]}  dxe4 {[%clk 0:01:57]} 18. Kb1 {[%clk 0:01:01]}  Nc5 {[%clk 0:01:45]} 19. Qf2 {[%clk 0:00:53]}  Rd7 {[%clk 0:01:00]} 20. Rd2 {[%clk 0:00:46]}  Rhd8 {[%clk 0:00:59]} 21. Rhd1 {[%clk 0:00:46]}  g6 {[%clk 0:00:41]} 22. hxg6 {[%clk 0:00:42]}  hxg6 {[%clk 0:00:42]} 23. Qg3 {[%clk 0:00:20]}  Rh8 {[%clk 0:00:31]} 24. f5 {[%clk 0:00:15]}  Bh4 {[%clk 0:00:24]} 25. Qf4 {[%clk 0:00:15]}  gxf5 {[%clk 0:00:17]} 26. gxf5 {[%clk 0:00:15]}  exf5 {[%clk 0:00:16]} 27. Nxf5 {[%clk 0:00:12]}  Bd8 {[%clk 0:00:10]} 28. Rxd7 {[%clk 0:00:08]}  Nxd7 {[%clk 0:00:11]} 29. Ba7 {[%clk 0:00:06]}  Qxe5 {[%clk 0:00:10]} 30. Nd6+ {[%clk 0:00:05]}  Kc7 {[%clk 0:00:09]} 31. Qxe5 {[%clk 0:00:03]}  Nxe5 {[%clk 0:00:09]} 32. Nxf7 {[%clk 0:00:03]}  Nxf7 {[%clk 0:00:09]} 33. Bxf7 {[%clk 0:00:04]}  Rf8 {[%clk 0:00:10]} 34. Bg6 {[%clk 0:00:02]}  Be7 {[%clk 0:00:09]} 35. Be3 {[%clk 0:00:01]}  Bd6 {[%clk 0:00:09]} 36. Bh5 {[%clk 0:00:01]}  Rh8 {[%clk 0:00:09]} 0-1


[Site "https://www.chess.com"]

[Event "Titled Tuesday Blitz November 29 Early 2022"]
[White "Ljukin, Sergei"]
[Black "Pinheiro, Iung Alicio de O."]
[WhiteFideId "14102200"]
[BlackFideId "2104350"]
[WhiteElo "2312"]
[BlackElo "2283"]
[Result "0-1"]
[Round "07"]
[TimeControl "180+1"]
[Date "2022.11.30"]
[WhiteClock "0:00:04"]
[BlackClock "0:00:27"]

1. e4 {[%clk 0:03:00]}  c5 {[%clk 0:02:57]} 2. Nf3 {[%clk 0:03:00]}  Nc6 {[%clk 0:02:57]} 3. d4 {[%clk 0:03:00]}  cxd4 {[%clk 0:02:58]} 4. Nxd4 {[%clk 0:03:01]}  e5 {[%clk 0:02:55]} 5. Nb5 {[%clk 0:03:01]}  d6 {[%clk 0:02:54]} 6. N1c3 {[%clk 0:03:01]}  a6 {[%clk 0:02:50]} 7. Na3 {[%clk 0:03:01]}  b5 {[%clk 0:02:50]} 8. Nd5 {[%clk 0:03:01]}  Nge7 {[%clk 0:02:50]} 9. c4 {[%clk 0:03:01]}  Nxd5 {[%clk 0:02:48]} 10. cxd5 {[%clk 0:03:01]}  Nd4 {[%clk 0:02:47]} 11. Bd3 {[%clk 0:02:58]}  g6 {[%clk 0:02:47]} 12. O-O {[%clk 0:02:57]}  Bg7 {[%clk 0:02:46]} 13. Be3 {[%clk 0:02:56]}  O-O {[%clk 0:02:46]} 14. Nc2 {[%clk 0:02:56]}  Kh8 {[%clk 0:02:44]} 15. Rc1 {[%clk 0:02:45]}  f5 {[%clk 0:02:36]} 16. exf5 {[%clk 0:02:13]}  gxf5 {[%clk 0:01:59]} 17. Nxd4 {[%clk 0:02:09]}  exd4 {[%clk 0:01:55]} 18. Bf4 {[%clk 0:02:09]}  Be5 {[%clk 0:01:40]} 19. Qf3 {[%clk 0:02:04]}  Qh4 {[%clk 0:01:36]} 20. g3 {[%clk 0:01:49]}  Qf6 {[%clk 0:01:05]} 21. Rc7 {[%clk 0:01:44]}  Rf7 {[%clk 0:00:57]} 22. Rfc1 {[%clk 0:01:39]}  Bd7 {[%clk 0:00:49]} 23. Rb7 {[%clk 0:01:01]}  Raf8 {[%clk 0:00:45]} 24. Rcc7 {[%clk 0:00:59]}  Be8 {[%clk 0:00:45]} 25. a4 {[%clk 0:00:47]}  Rxc7 {[%clk 0:00:39]} 26. Rxc7 {[%clk 0:00:46]}  bxa4 {[%clk 0:00:39]} 27. Bxa6 {[%clk 0:00:45]}  d3 {[%clk 0:00:37]} 28. Bxd3 {[%clk 0:00:42]}  Bxb2 {[%clk 0:00:36]} 29. Ra7 {[%clk 0:00:38]}  a3 {[%clk 0:00:34]} 30. h4 {[%clk 0:00:20]}  Bf7 {[%clk 0:00:31]} 31. Bg5 {[%clk 0:00:17]}  Qe5 {[%clk 0:00:28]} 32. Bxf5 {[%clk 0:00:14]}  Bxd5 {[%clk 0:00:27]} 33. Qh5 {[%clk 0:00:05]}  Qe1+ {[%clk 0:00:26]} 34. Kh2 {[%clk 0:00:04]}  Qh1# {[%clk 0:00:27]} 0-1


[Site "https://www.chess.com"]

[Event "Titled Tuesday Blitz November 29 Early 2022"]
[White "Manon-og, Ramon Jr."]
[Black "Sadovsky, Artem"]
[WhiteFideId "5200776"]
[BlackFideId "4155840"]
[WhiteElo "2327"]
[BlackElo "2312"]
[Result "1-0"]
[Round "07"]
[TimeControl "180+1"]
[Date "2022.11.30"]
[WhiteClock "0:01:27"]
[BlackClock "0:01:32"]

1. e4 {[%clk 0:02:59]}  g6 {[%clk 0:02:59]} 2. d4 {[%clk 0:02:59]}  Bg7 {[%clk 0:03:00]} 3. Nc3 {[%clk 0:02:59]}  c6 {[%clk 0:03:00]} 4. Bc4 {[%clk 0:03:00]}  d5 {[%clk 0:03:01]} 5. exd5 {[%clk 0:03:00]}  b5 {[%clk 0:03:02]} 6. Bb3 {[%clk 0:02:56]}  b4 {[%clk 0:03:02]} 7. Ne4 {[%clk 0:02:53]}  cxd5 {[%clk 0:03:01]} 8. Nc5 {[%clk 0:02:52]}  a5 {[%clk 0:03:00]} 9. Qf3 {[%clk 0:02:45]}  Nf6 {[%clk 0:03:00]} 10. Bg5 {[%clk 0:02:41]}  e6 {[%clk 0:02:48]} 11. Ba4+ {[%clk 0:02:41]}  Nbd7 {[%clk 0:02:41]} 12. Nxd7 {[%clk 0:02:40]}  Bxd7 {[%clk 0:02:40]} 13. Bxd7+ {[%clk 0:02:40]}  Qxd7 {[%clk 0:02:40]} 14. Bxf6 {[%clk 0:02:40]}  Bxf6 {[%clk 0:02:40]} 15. Qxf6 {[%clk 0:02:41]}  O-O {[%clk 0:02:41]} 16. h4 {[%clk 0:02:39]}  h5 {[%clk 0:02:37]} 17. Nf3 {[%clk 0:02:38]}  Rac8 {[%clk 0:02:36]} 18. Rc1 {[%clk 0:02:34]}  a4 {[%clk 0:02:35]} 19. O-O {[%clk 0:02:34]}  Qd8 {[%clk 0:02:29]} 20. Qxd8 {[%clk 0:02:29]}  Rfxd8 {[%clk 0:02:30]} 21. Ne5 {[%clk 0:02:29]}  Rc7 {[%clk 0:02:22]} 22. c3 {[%clk 0:02:29]}  Rdc8 {[%clk 0:02:22]} 23. Nd3 {[%clk 0:02:29]}  bxc3 {[%clk 0:02:22]} 24. bxc3 {[%clk 0:02:29]}  Rxc3 {[%clk 0:02:23]} 25. Rxc3 {[%clk 0:02:30]}  Rxc3 {[%clk 0:02:24]} 26. Nc5 {[%clk 0:02:28]}  a3 {[%clk 0:02:23]} 27. f4 {[%clk 0:02:18]}  Rc4 {[%clk 0:02:16]} 28. Nb3 {[%clk 0:02:03]}  Rc2 {[%clk 0:02:16]} 29. Rf2 {[%clk 0:02:03]}  Rc3 {[%clk 0:02:16]} 30. Kh2 {[%clk 0:01:58]}  Kg7 {[%clk 0:02:09]} 31. Nc5 {[%clk 0:01:52]}  Kf6 {[%clk 0:02:08]} 32. Rf3 {[%clk 0:01:51]}  Rxf3 {[%clk 0:01:56]} 33. gxf3 {[%clk 0:01:51]}  Kf5 {[%clk 0:01:57]} 34. Kg3 {[%clk 0:01:51]}  f6 {[%clk 0:01:56]} 35. Nb3 {[%clk 0:01:45]}  g5 {[%clk 0:01:50]} 36. fxg5 {[%clk 0:01:45]}  fxg5 {[%clk 0:01:51]} 37. Na1 {[%clk 0:01:41]}  gxh4+ {[%clk 0:01:42]} 38. Kxh4 {[%clk 0:01:38]}  Kf4 {[%clk 0:01:42]} 39. Nc2 {[%clk 0:01:37]}  Kxf3 {[%clk 0:01:41]} 40. Nxa3 {[%clk 0:01:38]}  Ke4 {[%clk 0:01:37]} 41. Nb5 {[%clk 0:01:31]}  e5 {[%clk 0:01:34]} 42. a4 {[%clk 0:01:27]}  exd4 {[%clk 0:01:35]} 43. a5 {[%clk 0:01:28]}  d3 {[%clk 0:01:35]} 44. a6 {[%clk 0:01:28]}  d2 {[%clk 0:01:31]} 45. Nc3+ {[%clk 0:01:25]}  Kd3 {[%clk 0:01:31]} 46. Nd1 {[%clk 0:01:26]}  Kc2 {[%clk 0:01:27]} 47. Nf2 {[%clk 0:01:24]}  d1=Q {[%clk 0:01:22]} 48. Nxd1 {[%clk 0:01:24]}  Kxd1 {[%clk 0:01:23]} 49. a7 {[%clk 0:01:25]}  d4 {[%clk 0:01:24]} 50. a8=Q {[%clk 0:01:26]}  d3 {[%clk 0:01:25]} 51. Kxh5 {[%clk 0:01:22]}  d2 {[%clk 0:01:26]} 52. Qd5 {[%clk 0:01:22]}  Kc1 {[%clk 0:01:26]} 53. Qc4+ {[%clk 0:01:22]}  Kb2 {[%clk 0:01:27]} 54. Qd3 {[%clk 0:01:22]}  Kc1 {[%clk 0:01:27]} 55. Qc3+ {[%clk 0:01:22]}  Kb1 {[%clk 0:01:28]} 56. Qxd2 {[%clk 0:01:22]}  Ka1 {[%clk 0:01:28]} 57. Kg4 {[%clk 0:01:23]}  Kb1 {[%clk 0:01:29]} 58. Kf4 {[%clk 0:01:24]}  Ka1 {[%clk 0:01:29]} 59. Ke3 {[%clk 0:01:25]}  Kb1 {[%clk 0:01:30]} 60. Kd3 {[%clk 0:01:26]}  Ka1 {[%clk 0:01:31]} 61. Kc3 {[%clk 0:01:27]}  Kb1 {[%clk 0:01:32]} 62. Qb2# {[%clk 0:01:27]} 1-0


[Site "https://www.chess.com"]